Cogmind - Beta 15 @@@ ROGUE MODE // 2025.07.31 @ 14:39:29 Player: Inverisimilidude Result: Destroyed by B-75 Beast with Heavy Plasma Cannon Performance ------------- Evolutions (4) 2000 Regions Visited (12) 2400 Robots Destroyed (166) 830 Value Destroyed (4630) 4630 Prototype IDs (19) 380 Alien Tech Used (0) 0 Bonus (574) 574 TOTAL SCORE: 10814 Bonus ------- High Alert Combat Kills 24 Follower Combat Kills 291 Met Data Miner 300 Friendly Fire -41 Cogmind --------- Core Integrity 0/850 Matter 300/300 Energy 98/100 System Corruption 1% Temperature Cool (18) Movement Core (50) Location -6/Extension Parts ------- > --- POWER (1) -------- (None) > --- PROPULSION (4) --- (None) > --- UTILITY (6) ------ Enhanced Optical Array Improved Signal Interpreter > --- WEAPON (4) ------- (None) > --- INVENTORY (5) ---- Sensor Drone Bay (6/20) Remote Datajack Chainsword Peak State ------------ > --- POWER ------------ Improved Ion Engine > --- PROPULSION ------- Armored Huge Wheel Armored Huge Wheel > --- UTILITY ---------- High-capacity Storage Unit Sensor Array Improved Signal Interpreter Improved Targeting Computer Improved Target Analyzer Sensor Drone Bay > --- WEAPON ----------- High-powered Shotgun Hypervelocity Gauss Rifle Advanced Assault Cannon Dirty Datajack > --- INVENTORY -------- Improved Ion Engine Light Nuclear Core High-capacity Matter Pod Experimental Sensor Array Improved Field Recycling Unit Advanced Assault Cannon Rocket Launcher Remote Datajack Chainsword [Rating: 59] Favorites ----------- Power Improved Ion Engine Engine Improved Ion Engine Propulsion Armored Huge Wheel Wheel Armored Huge Wheel Utility High-capacity Storage Unit Device Seismic Detector Storage High-capacity Storage Unit Processor Improved Signal Interpreter Hackware Hacking Suite Protection Medium Armor Plating Weapon Assault Cannon Energy Gun EM Pulse Gun Ballistic Gun Assault Rifle Ballistic Cannon Assault Cannon Launcher Rocket Launcher Special Weapon Mining Laser Impact Weapon Mace Slashing Weapon Chainsword Special Melee Weapon Dirty Datajack Build | -11 -10 -10 -9 -9 -8 -7 -7 -7 -7 -6 -6 -6 ------- Run | Yrd Mat Min Mat Min Mat Fac Low Low Dat Pro Fac Ext Slots Evolved 8 | . . . 2 . 2 2 . . . . 2 . Power . | . . . . . . . . . . . . . Propulsion 2 | . . . . . . . . . . . 2 . Utility 4 | . . . 2 . 1 1 . . . . . . Weapon 2 | . . . . . 1 1 . . . . . . Parts Attached 96 | 7 8 4 6 11 28 6 1 6 . 3 11 5 Power 10 | 1 1 1 1 2 3 . . . . . 1 . Engine 10 | 1 1 1 1 2 3 . . . . . 1 . Core . | . . . . . . . . . . . . . Reactor . | . . . . . . . . . . . . . Propulsion 11 | 2 1 2 1 1 3 . . . . . 1 . Treads . | . . . . . . . . . . . . . Leg . | . . . . . . . . . . . . . Wheel 11 | 2 1 2 1 1 3 . . . . . 1 . Hover . | . . . . . . . . . . . . . Flight . | . . . . . . . . . . . . . Utility 42 | 2 2 1 1 4 12 4 1 3 . . 7 5 Device 19 | 1 1 . 1 2 7 2 . 1 . . 2 2 Storage 5 | 1 1 . . . . 1 . . . . 2 . Processor 8 | . . . . . 1 1 . 1 . . 3 2 Hackware 1 | . . . . . . . . . . . . 1 Protection 9 | . . 1 . 2 4 . 1 1 . . . . Artifact . | . . . . . . . . . . . . . Weapon 33 | 2 4 . 3 4 10 2 . 3 . 3 2 . Energy Gun 3 | 1 . . . 2 . . . . . . . . Energy Cannon . | . . . . . . . . . . . . . Ballistic Gun 14 | 1 2 . 1 1 5 . . 2 . . 2 . Ballistic Cannon 7 | . . . . 1 3 1 . 1 . 1 . . Launcher 4 | . 1 . 1 . 2 . . . . . . . Special Weapon 2 | . 1 . . . . . . . . 1 . . Impact Weapon 1 | . . . 1 . . . . . . . . . Slashing Weapon 1 | . . . . . . 1 . . . . . . Piercing Weapon . | . . . . . . . . . . . . . Special Melee Weapon 1 | . . . . . . . . . . 1 . . Unidentified Prototypes 5 | . . . 1 . 3 . . . . . 1 . Parts Lost 54 | . . 3 1 7 13 1 . 9 . 3 9 8 Power 4 | . . 1 . 1 1 . . . . . 1 . Propulsion 7 | . . 2 . 1 1 . . 1 . . 1 1 Utility 24 | . . . . 2 6 1 . 6 . 2 1 6 Weapon 19 | . . . 1 3 5 . . 2 . 1 6 1 Highest Loss Streak 8 | . . 1 1 2 5 1 . 7 . 3 8 6 To Critical Strikes . | . . . . . . . . . . . . . Average Backups 15 | 2 9 18 19 19 17 18 19 17 13 11 9 5 Power 1 | . . . . 1 1 1 1 1 1 1 1 . Propulsion 1 | 1 1 2 3 3 1 1 2 1 1 1 . . Utility 7 | . 3 9 9 8 10 8 8 7 4 3 5 3 Weapon 5 | . 4 5 5 6 5 7 7 5 5 2 1 . Tool/Special . | . . . . . . . . . . . . . Unused Backups 26 | . 4 . 6 . 9 2 . 2 . . . 3 Power 2 | . . . . . 1 . . . . . . 1 Propulsion 6 | . 2 . . . 3 . . 1 . . . . Utility 14 | . 1 . 5 . 5 1 . . . . . 2 Weapon 4 | . 1 . 1 . . 1 . 1 . . . . Tool/Special . | . . . . . . . . . . . . . Average Slot Usage (%) 87 | . 100 99 99 99 86 91 92 90 62 83 74 49 Engine 8 | . 14 14 11 11 8 7 7 7 7 7 5 1 Wheel 11 | . 28 27 22 21 9 7 7 6 7 7 9 1 Device 15 | . 14 8 21 22 20 16 14 14 15 13 6 9 Storage 8 | . 14 14 11 11 9 7 7 7 7 7 7 1 Processor 9 | . . . . . 3 13 15 14 15 15 22 21 Protection 6 | . . 5 11 11 8 7 7 6 7 4 . . Ballistic Gun 12 | . 17 26 21 8 19 7 7 11 . 11 6 . Ballistic Cannon 9 | . . . . 5 6 20 23 16 . 11 6 . Peak Build Rating 59 | 7 9 12 20 24 36 44 43 46 37 46 59 48 Average Rating 32 | 5 7 10 18 20 30 41 42 43 31 42 48 31 On Entrance 26 | . 7 9 12 19 18 36 42 43 41 31 42 47 Naked Turns . | . . . . . . . . . . . . . Heaviest Build 123 | 14 50 57 64 67 69 71 76 77 58 75 123 92 Greatest Support 56 | 26 26 26 22 28 28 28 28 28 28 28 56 28 Greatest Overweight (x) 5 | . 1 4 2 5 2 2 2 2 2 2 3 3 Average Overweight (x) 1 | . . 1 2 2 1 2 2 2 2 2 2 . Largest Inventory Capacity 25 | 8 20 20 20 20 20 20 20 20 20 20 25 25 Average Capacity 19 | 7 12 20 20 20 20 20 20 20 20 20 24 9 Most Carried 20 | 6 18 20 20 20 20 20 20 20 15 14 12 10 Average Carried 16 | 2 9 18 19 19 19 19 19 18 14 12 9 5 Final Capacity 25 | 8 20 20 20 20 20 20 20 20 20 20 25 5 Final Carried 20 | 6 18 20 20 18 20 20 20 12 15 12 10 3 Class Distribution -------------------- 46% | Skirmisher 28% | Mutant 5% | Scavenger-Tank 4% | Assassin 4% | Scout 3% | Scavenger-Mutant Dominant Class ---------------- Mutant | -10/Materials Mutant | -10/Mines Mutant | -9/Materials Mutant | -9/Mines Skirmisher | -8/Materials Skirmisher | -7/Factory Skirmisher | -7/Lower Caves Skirmisher | -7/Lower Caves Mutant | -7/Data Miner Skirmisher | -6/Proximity Caves Assassin | -6/Factory Scout | -6/Extension Resources | -11 -10 -10 -9 -9 -8 -7 -7 -7 -7 -6 -6 -6 ----------- Run | Yrd Mat Min Mat Min Mat Fac Low Low Dat Pro Fac Ext Matter Collected 5589 | 273 679 245 489 521 1530 275 222 793 . 185 234 143 Remotely . | . . . . . . . . . . . . . Salvage Created 4745 | 30 626 215 659 220 1826 260 69 454 . 69 278 39 Parts 287 | 3 39 11 48 9 109 21 2 16 . 7 20 2 Haulers Intercepted 6 | . 1 . 1 . 4 . . . . . . . Recyclers Shooed . | . . . . . . . . . . . . . Parts Field Recycled . | . . . . . . . . . . . . . Retrieved Matter . | . . . . . . . . . . . . . Parts Self-Destructed 24 | . . . . . . . 2 14 . 8 . . Prevented . | . . . . . . . . . . . . . Kills | -11 -10 -10 -9 -9 -8 -7 -7 -7 -7 -6 -6 -6 ------- Run | Yrd Mat Min Mat Min Mat Fac Low Low Dat Pro Fac Ext Combat Hostiles Destroyed 131 | . 18 11 14 18 36 7 2 15 . 3 7 . Guns 65 | . 5 9 7 7 22 1 1 7 . 2 4 . Cannons 20 | . . . . 4 5 3 1 6 . 1 . . AOE 46 | . 13 2 7 7 9 3 . 2 . . 3 . Classes Destroyed 17 | 1 7 1 2 2 1 1 . 2 . . . . Worker 8 | . . 1 1 . 4 1 . . . . 1 . Builder 11 | . 1 . 5 . 3 . . . . . 2 . Tunneler 4 | 1 2 . . . 1 . . . . . . . Hauler 6 | . 1 . 1 . 4 . . . . . . . Recycler 3 | . 1 . . . 1 1 . . . . . . Mechanic 1 | . . . . . 1 . . . . . . . Operator 2 | . 1 . . . . . . . . . 1 . Watcher 11 | . 1 . 2 . 4 1 . . . . 2 1 Swarmer 41 | . 6 9 . 4 10 4 . 2 . 3 3 . Grunt 52 | . 12 2 9 1 17 2 1 6 . . 2 . Brawler 6 | . . . 1 1 1 . . 2 . . 1 . Duelist 2 | . . . . . . . . 2 . . . . Sentry 15 | . . . 4 . 8 . 1 2 . . . . Demolisher 1 | . . . . 1 . . . . . . . . Programmer 2 | . . . . . . 1 . . . . 1 . Thief 1 | . . . . . . . . 1 . . . . Assembled 11 | . . . . 11 . . . . . . . . Best Kill Streak 10 | 1 4 3 7 4 10 4 1 7 . 3 8 1 Combat Bots Only 7 | . 3 3 5 4 7 4 1 7 . 3 5 . Max Kills in Single Turn 5 | 1 2 2 4 2 5 1 1 2 . 1 4 1 Gunslinging 1 | . . 1 . . . . . . . . . . Exploded 4 | . 2 1 2 1 4 1 . 2 . . 2 . Melee . | . . . . . . . . . . . . . Uniques/NPCs Destroyed . | . . . . . . . . . . . . . Combat | -11 -10 -10 -9 -9 -8 -7 -7 -7 -7 -6 -6 -6 -------- Run | Yrd Mat Min Mat Min Mat Fac Low Low Dat Pro Fac Ext Hostile Shots Fired 742 | . 38 48 36 81 143 18 9 114 . 68 78 109 Missed 202 | . 17 10 12 20 27 3 6 24 . 19 13 51 Hits 540 | . 21 38 24 61 116 15 3 90 . 49 65 58 Melee 19 | . . . . 4 3 . . 8 . . 4 . Projectile 521 | . 21 38 24 57 113 15 3 82 . 49 61 58 AOE 4 | . . . . 4 . . . . . . . . Critical Strikes 18 | . . . . 1 4 . . 5 . . 5 3 Part Disruptions 1 | . . . . . . . . . . . 1 . Damage Taken 8172 | . 261 398 322 897 1788 270 27 1452 . 634 1233 890 Core 1781 | . 54 54 48 170 210 37 10 153 . 174 188 683 Absorbed by Shields . | . . . . . . . . . . . . . Core Remaining (%) 61 | 100 . 56 . 45 61 . . . . 46 . . Volleys Fired 351 | 7 40 30 31 47 105 17 5 37 . 8 24 . Largest 4 | 2 2 2 2 2 3 4 4 4 . 4 4 . Hottest 139 | 60 100 100 100 85 97 132 139 139 . 129 138 . Shots Fired 880 | 14 76 58 61 81 306 53 20 135 . 24 52 . Gun 632 | 14 61 51 49 47 278 12 5 73 . 10 32 . Cannon 182 | . . . . 24 22 36 15 57 . 11 17 . Launcher 57 | . 14 3 11 10 6 5 . 5 . . 3 . Special 9 | . 1 4 1 . . . . . . 3 . . Kinetic 774 | 7 43 51 49 56 300 48 20 130 . 21 49 . Thermal 6 | . 1 4 1 . . . . . . . . . Explosive 57 | . 14 3 11 10 6 5 . 5 . . 3 . Electromagnetic 40 | 7 18 . . 15 . . . . . . . . Robot Hit Streak 22 | 5 7 12 14 7 11 5 8 15 . 3 22 . Robot Miss Streak 8 | 2 4 3 5 5 8 6 2 7 . 6 3 . Penetration Max 1 | . . . . 1 . . . 1 . . 1 . Secondary Targets 6 | . . 2 1 1 2 . . . . . . . Max Gunslinging Chain 1 | . . 1 1 1 1 . . . . . . . Shots Hit Robots 518 | 8 45 32 37 36 177 27 14 75 . 20 46 1 Core Hits 319 | 1 41 17 33 32 100 14 4 41 . 9 26 1 Critical Kills 4 | . . . 1 . 1 . . . . . 2 . Critical Parts Destroyed 6 | . . . 1 . 1 . . 2 . . 2 . Critical Strikes 15 | . . . 2 . 2 2 . 2 . 1 6 . Destroy 10 | . . . 2 . 2 . . 2 . . 4 . Blast 5 | . . . . . . 2 . . . 1 2 . Melee Attacks 31 | . . . 1 . 2 6 . . . 10 10 2 Impact 3 | . . . 1 . 2 . . . . . . . Slashing 10 | . . . . . . 6 . . . . 2 2 Piercing 18 | . . . . . . . . . . 10 8 . Sneak Attacks 10 | . . . . . 2 4 . . . 2 1 1 Combat Hostiles 2 | . . . . . . . . . . 2 . . Follow-up Attacks . | . . . . . . . . . . . . . Damage Inflicted 12724 | 97 1423 554 1113 1110 3620 984 232 1916 . 182 1379 114 Guns 5746 | 97 511 379 391 368 2386 82 46 904 . 109 473 . Cannons 2000 | . . . . 181 219 367 186 727 . 53 267 . Explosions 4306 | . 912 175 722 561 883 226 . 285 . . 542 . Melee 638 | . . . . . 132 309 . . . 20 97 80 Ramming 34 | . . . . . . . . . . . . 34 Kinetic 7356 | 46 336 379 391 385 2605 449 232 1631 . 162 740 . Thermal 223 | . 109 . . 114 . . . . . . . . Explosive 4083 | . 803 175 722 447 883 226 . 285 . . 542 . Electromagnetic 390 | 51 175 . . 164 . . . . . . . . Impact 132 | . . . . . 132 . . . . . . . Slashing 471 | . . . . . . 309 . . . . 82 80 Piercing 35 | . . . . . . . . . . 20 15 . Highest Corruption 7 | . 2 2 . 5 7 2 2 6 6 6 1 1 Average Corruption 3 | . 2 2 . 4 7 1 2 2 6 6 1 1 Corruption Purged . | . . . . . . . . . . . . . Corruption Blocked . | . . . . . . . . . . . . . Effects 167 | . . 12 . 23 54 2 19 27 4 21 3 2 Message Errors 39 | . . 3 . 7 10 . 11 5 . 3 . . Matter Fused 34 | . . 2 . 6 10 1 . 5 1 9 . . Heat Flow Errors 20 | . . 1 . . 9 . 2 3 2 2 1 . Energy Discharges 20 | . . 2 . 4 4 . 3 3 1 3 . . Parts Rejected 2 | . . . . . 2 . . . . . . . Parts Fused 2 | . . . . . 1 1 . . . . . . Data Loss (minor) 25 | . . . . 2 10 . 2 6 . 2 1 2 Data Loss (major) 5 | . . . . 1 1 . . 2 . . 1 . Misfires 5 | . . 2 . 1 1 . . . . 1 . . Alerts 8 | . . 2 . . 3 . 1 1 . 1 . . Weapon Failures 7 | . . . . 2 3 . . 2 . . . . Overload Shots . | . . . . . . . . . . . . . Overflow Damage 349 | . 18 6 17 48 44 134 4 . . . 78 . Projectiles 19 | . . . . 13 . . 4 . . . 2 . Explosions 124 | . 18 6 17 35 19 . . . . . 29 . Melee 206 | . . . . . 25 134 . . . . 47 . Knockbacks 19 | . . . . . 8 2 . 5 . 1 3 . Impact 1 | . . . . . 1 . . . . . . . Kinetic 17 | . . . . . 7 2 . 5 . 1 2 . Secondary 1 | . . . . . . . . . . . 1 . Self-Inflicted Damage 333 | . 22 6 . 121 52 38 . . . . 78 16 Shots 12 | . 1 2 . 3 2 2 . . . . 2 . Rammed 5 | . . . . . . . . . . . . 5 Targets Rammed 5 | . . . . . . . . . . . . 5 Kicked . | . . . . . . . . . . . . . Crushed . | . . . . . . . . . . . . . Highest Temperature 288 | 20 52 232 28 126 266 288 138 231 174 224 258 . Average Temperature 64 | 15 18 46 12 53 68 102 62 86 84 83 70 . Received Heat Transfer 2480 | . 96 132 126 98 900 54 12 447 . 48 315 252 Siege Activations . | . . . . . . . . . . . . . Martial Activations . | . . . . . . . . . . . . . Shielding Activations . | . . . . . . . . . . . . . Robots Disrupted . | . . . . . . . . . . . . . Combat Hostiles . | . . . . . . . . . . . . . Robots Corrupted 1 | . . . . . 1 . . . . . . . Combat Hostiles . | . . . . . . . . . . . . . Parts Fried 1 | . . . . . 1 . . . . . . . Impact Corruptions 2 | . . . . . 1 . . . . . 1 . Robots Melted . | . . . . . . . . . . . . . Combat Hostiles . | . . . . . . . . . . . . . Parts Melted . | . . . . . . . . . . . . . Heat Transferred 250 | . 150 . . 100 . . . . . . . . Parts Sabotaged . | . . . . . . . . . . . . . Parts Stolen . | . . . . . . . . . . . . . Parts Stripped . | . . . . . . . . . . . . . Power Chain Reactions 3 | . 2 . . 1 . . . . . . . . Alert | -11 -10 -10 -9 -9 -8 -7 -7 -7 -7 -6 -6 -6 ------- Run | Yrd Mat Min Mat Min Mat Fac Low Low Dat Pro Fac Ext Maximum Alert Level 2 | . 1 . 1 . 2 1 . . . . . . Low Security (%) 72 | 100 27 100 43 100 46 92 . . . . 100 100 Level 1 24 | . 72 . 56 . 43 7 . . . . . . Level 2 2 | . . . . . 9 . . . . . . . Level 3 . | . . . . . . . . . . . . . Level 4 . | . . . . . . . . . . . . . Level 5 . | . . . . . . . . . . . . . High Security . | . . . . . . . . . . . . . Max Security . | . . . . . . . . . . . . . Peak Influence 422 | 5 348 192 329 148 422 231 . . . . 114 150 Initial 189 | . . 95 17 105 24 189 . . . . . . Average 130 | . 227 104 161 39 241 89 . . . . 25 19 Influence Increases 4295 | 5 606 342 510 250 1146 266 40 290 . 106 282 452 Destroy 0b10 Robot/C 2640 | . 360 220 280 140 720 140 40 280 . 80 140 240 Destroy 0b10 Robot/NC 230 | 5 35 5 45 . 90 15 . . . . 30 5 Destroy Leader 504 | . 84 40 76 30 166 22 . 10 . 10 24 42 Allied During Kill 82 | . . . . . . . . . . 1 . 81 Successful Hack 102 | . 16 . 11 . 33 14 . . . . 23 5 Disable Machine 255 | . 45 60 30 . 45 45 . . . . 15 15 Destroy Structure 302 | . 66 17 68 80 32 15 . . . . 20 4 Lose Combat Pursuer 180 | . . . . . 60 15 . . . 15 30 60 Influence Decreases 4295 | 5 360 543 283 458 792 656 68 188 102 106 282 452 Entered New Map 728 | . . 151 28 167 40 229 11 . 102 . . . Time Decay 2872 | 5 360 362 245 241 622 417 57 98 . 106 201 158 Lost Part 400 | . . 30 10 50 130 10 . 90 . . 80 . Lost Ally 161 | . . . . . . . . . . . 1 160 Purge Threat 134 | . . . . . . . . . . . . 134 Squads Dispatched 24 | . 5 . 2 1 5 2 . 1 . . 3 5 Investigation 11 | . 2 . . 1 2 . . . . . 2 4 Extermination 3 | . . . . . . 2 . . . . 1 . Reinforcement 9 | . 3 . 2 . 3 . . . . . . 1 Assault 1 | . . . . . . . . 1 . . . . Garrison . | . . . . . . . . . . . . . Intercept . | . . . . . . . . . . . . . Searches Triggered . | . . . . . . . . . . . . . Data Miner Redirects 5 | . . . . . . . . . . . 2 3 Construction Impeded 1 | . . . 1 . . . . . . . . . Haulers Reinforced . | . . . . . . . . . . . . . Active Scanning Responses . | . . . . . . . . . . . . . Cargo Convoy Interrupts . | . . . . . . . . . . . . . Stealth | -11 -10 -10 -9 -9 -8 -7 -7 -7 -7 -6 -6 -6 --------- Run | Yrd Mat Min Mat Min Mat Fac Low Low Dat Pro Fac Ext Distress Signals 11 | . . . 1 2 7 . . . . . . 1 Communications Jammed . | . . . . . . . . . . . . . Distress Signals . | . . . . . . . . . . . . . Times Spotted 193 | . 26 11 19 23 47 9 2 16 . 9 13 18 Peak Tracking Total 8 | . 4 3 3 4 8 3 1 7 . 3 7 7 Tactical Retreats 14 | . . . . 4 3 1 . . . 1 2 3 Traps | -11 -10 -10 -9 -9 -8 -7 -7 -7 -7 -6 -6 -6 ------- Run | Yrd Mat Min Mat Min Mat Fac Low Low Dat Pro Fac Ext Traps Triggered 8 | . 3 . . . 2 1 . . . . 1 1 Indirectly . | . . . . . . . . . . . . . Trap Hack Attempts . | . . . . . . . . . . . . . Triggered . | . . . . . . . . . . . . . Disarmed . | . . . . . . . . . . . . . Reprogrammed 5 | . . . . . . . . . . . . 5 Reused . | . . . . . . . . . . . . . Traps Extracted . | . . . . . . . . . . . . . Installed . | . . . . . . . . . . . . . Triggered . | . . . . . . . . . . . . . Machines | -11 -10 -10 -9 -9 -8 -7 -7 -7 -7 -6 -6 -6 ---------- Run | Yrd Mat Min Mat Min Mat Fac Low Low Dat Pro Fac Ext Machines Disabled 18 | . 3 4 2 . 3 3 . 1 . . 1 1 Max in Single Turn 1 | . 1 1 1 . 1 1 . 1 . . 1 1 Machines Repaired . | . . . . . . . . . . . . . Machines Dismantled . | . . . . . . . . . . . . . Machines Sabotaged . | . . . . . . . . . . . . . Overloaded Fab Kills . | . . . . . . . . . . . . . Hacking | -11 -10 -10 -9 -9 -8 -7 -7 -7 -7 -6 -6 -6 --------- Run | Yrd Mat Min Mat Min Mat Fac Low Low Dat Pro Fac Ext Machines Accessed 34 | . 3 1 3 2 9 5 . . 4 . 3 4 Terminals 25 | . 3 . 3 1 9 3 . . . . 2 4 Fabricators 1 | . . . . . . . . . . . 1 . Repair Stations 1 | . . . . . . 1 . . . . . . Recycling Units . | . . . . . . . . . . . . . Scanalyzers 1 | . . . . . . 1 . . . . . . Garrison Access . | . . . . . . . . . . . . . Total Hacks 108 | . 8 1 15 5 16 10 . . 31 . 10 12 Successful 58 | . 2 1 5 2 6 2 . . 31 . 5 4 Failed 50 | . 6 . 10 3 10 8 . . . . 5 8 Catastrophic 9 | . 3 . . . 5 1 . . . . . . Database Lockouts . | . . . . . . . . . . . . . Manual 25 | . 2 . 4 3 5 3 . . . . 5 3 Terminals 70 | . 8 . 15 4 16 7 . . . . 8 12 Fabricators 2 | . . . . . . . . . . . 2 . Repair Stations 2 | . . . . . . 2 . . . . . . Recycling Units . | . . . . . . . . . . . . . Scanalyzers 1 | . . . . . . 1 . . . . . . Garrison Access . | . . . . . . . . . . . . . Terminal Hacks 51 | . 2 1 4 2 6 2 . . 31 . 1 2 Record 11 | . . . . . . . . . 11 . . . Part Schematic 13 | . . . . . . . . . 13 . . . Robot Schematic 4 | . . . . . . . . . 4 . . . Robot Analysis 1 | . . . 1 . . . . . . . . . Prototype ID Bank 5 | . . . 1 . 1 . . . 3 . . . Open Door 2 | . . 1 . 1 . . . . . . . . Branch Access Points 2 | . 1 . . . 1 . . . . . . . Terminal Index 2 | . . . 1 . 1 . . . . . . . Alert Level 3 | . . . 1 1 . 1 . . . . . . Unreport Threat 1 | . . . . . . . . . . . . 1 Locate Traps 1 | . . . . . 1 . . . . . . . Reprogram Traps 1 | . . . . . . . . . . . . 1 Dispatch Records 2 | . . . . . 1 1 . . . . . . Garrison Status 1 | . . . . . 1 . . . . . . . Registered Components 1 | . 1 . . . . . . . . . . . Zone Layout 1 | . . . . . . . . . . . 1 . Fabricator Hacks 2 | . . . . . . . . . . . 2 . Load Schematic 1 | . . . . . . . . . . . 1 . Build 1 | . . . . . . . . . . . 1 . Repair Station Hacks . | . . . . . . . . . . . . . Recycling Unit Hacks . | . . . . . . . . . . . . . Scanalyzer . | . . . . . . . . . . . . . Garrison Access Hacks . | . . . . . . . . . . . . . Unauthorized Hacks 5 | . . . 1 . . . . . . . 2 2 Terminals 5 | . . . 1 . . . . . . . 2 2 Botnet 1 | . . . . . . . . . . . 1 . Operators 3 | . . . 1 . . . . . . . 1 1 Sabotage 1 | . . . . . . . . . . . . 1 Fabricators . | . . . . . . . . . . . . . Repair Stations . | . . . . . . . . . . . . . Recycling Units . | . . . . . . . . . . . . . Scanalyzers . | . . . . . . . . . . . . . Garrison Access . | . . . . . . . . . . . . . Data Cores Recovered 1 | . . . . . . . . . . . 1 . Used . | . . . . . . . . . . . . . Hacking Detections 24 | . 3 . 3 1 7 4 . . . . 3 3 Full Trace Events 6 | . 1 . . 1 . . . . . . 1 3 Feedback Events . | . . . . . . . . . . . . . Feedback Blocked . | . . . . . . . . . . . . . Robot Schematics Acquired 4 | . . . . . . . . . 4 . . . Robots Built 2 | . . . . . . . . . . . 2 . Authchips . | . . . . . . . . . . . . . Time 116 | . . . . . . . . . . . 116 . Total Robot Build Rating 6 | . . . . . . . . . . . 6 . Part Schematics Acquired 13 | . . . . . . . . . 13 . . . Parts Built . | . . . . . . . . . . . . . Authchips . | . . . . . . . . . . . . . Time . | . . . . . . . . . . . . . Total Part Build Rating . | . . . . . . . . . . . . . Parts Repaired . | . . . . . . . . . . . . . Time . | . . . . . . . . . . . . . Parts Recycled . | . . . . . . . . . . . . . Recycled Matter . | . . . . . . . . . . . . . Retrieved Matter . | . . . . . . . . . . . . . Retrieved Components . | . . . . . . . . . . . . . Parts Scanalyzed . | . . . . . . . . . . . . . Part Schematics Acquired . | . . . . . . . . . . . . . Parts Damaged . | . . . . . . . . . . . . . Bothacking | -11 -10 -10 -9 -9 -8 -7 -7 -7 -7 -6 -6 -6 ------------ Run | Yrd Mat Min Mat Min Mat Fac Low Low Dat Pro Fac Ext Used RIF Installer . | . . . . . . . . . . . . . Robots Hacked 1 | . . . . . . . . . . 1 . . Non-combat . | . . . . . . . . . . . . . Combat 1 | . . . . . . . . . . 1 . . Robot Hacks Applied 3 | . . . . . . . . . . 3 . . parse_system 3 | . . . . . . . . . . 3 . . Relay Couplers Released . | . . . . . . . . . . . . . Fabnet Peak Effective % . | . . . . . . . . . . . . . Robots Rewired 3 | . . . . . . . . . . . . 3 Allies Hacked . | . . . . . . . . . . . . . Hacks Repelled . | . . . . . . . . . . . . . Allies | -11 -10 -10 -9 -9 -8 -7 -7 -7 -7 -6 -6 -6 -------- Run | Yrd Mat Min Mat Min Mat Fac Low Low Dat Pro Fac Ext Total Allies 13 | . . . . . . . . . . 1 3 9 Largest Group 6 | . . . . . . . . . . 1 2 6 Highest-Rated Group 168 | . . . . . . . . . . 41 42 168 Highest-Rated Ally 41 | . . . . . . . . . . 41 29 39 Total Orders 2 | . . . . . . . . . . 1 1 . AID 1 | . . . . . . . . . . . 1 . EXPLORE 1 | . . . . . . . . . . 1 . . Ally Attacks 61 | . . . . . . . . . . 3 5 53 Total Damage 1219 | . . . . . . . . . . 81 96 1042 Kills 14 | . . . . . . . . . . 1 . 13 Allies Corrupted . | . . . . . . . . . . . . . Allies Melted . | . . . . . . . . . . . . . Intel | -11 -10 -10 -9 -9 -8 -7 -7 -7 -7 -6 -6 -6 ------- Run | Yrd Mat Min Mat Min Mat Fac Low Low Dat Pro Fac Ext Active Infowar (turns) 11926 | 9 886 470 735 855 2108 1147 1559 1521 129 767 970 770 Optics 1578 | . . . . . . . . . . . 808 770 Sensors 10150 | . 389 470 735 114 1861 1061 1539 1508 129 767 864 713 Terrain 1750 | . . . 734 855 161 . . . . . . . Seismic 5536 | 9 497 . . 733 431 1144 1559 759 . . . 404 Robot Analysis Total 1 | . . . 1 . . . . . . . . . Derelict Logs Recovered 5 | . . 1 . 1 . . 2 1 . . . . Drone Launches 20 | . . . . . . . . . . 20 . . Drone Recoveries 6 | . . . . . . . . . . 6 . . Exploration | -11 -10 -10 -9 -9 -8 -7 -7 -7 -7 -6 -6 -6 ------------- Run | Yrd Mat Min Mat Min Mat Fac Low Low Dat Pro Fac Ext Turns Passed 12419 | 85 887 820 739 855 2112 1147 1559 1579 129 767 970 770 Spaces Moved 8529 | 55 736 627 429 550 1212 678 1159 1068 99 438 558 920 Core 808 | 1 . . . . . . . . . . . 807 Treads . | . . . . . . . . . . . . . Legs . | . . . . . . . . . . . . . Wheels 7721 | 54 736 627 429 550 1212 678 1159 1068 99 438 558 113 Hover . | . . . . . . . . . . . . . Flight . | . . . . . . . . . . . . . Fastest Speed 50 | 50 90 105 110 110 115 130 130 130 130 130 115 50 Average Speed 116 | 90 95 111 114 120 129 130 130 130 130 130 131 61 Slowest Speed 165 | 100 105 145 115 165 130 130 130 130 130 130 145 145 Overloaded Moves . | . . . . . . . . . . . . . Propulsion Burnouts . | . . . . . . . . . . . . . Robots Hopped . | . . . . . . . . . . . . . Potential Cave-ins 3 | . . . . . . . . 3 . . . . Cave-ins Triggered . | . . . . . . . . . . . . . Exploration Rate (%) 64 | 3 92 98 40 95 85 10 97 88 74 91 11 54 Regions Visited 12 Branch Regions 7 Pre-discovered Areas 2 | . . . . . . . . 1 1 . . . Known Exits Taken 10 | . 1 . 1 1 1 1 1 1 1 1 1 . Unknown Exits Taken 2 | 1 . 1 . . . . . . . . . . Scrap Searched 10 | . . 2 . 2 . . 2 3 . 1 . . Spaces Dug 1 | . . . 1 . . . . . . . . . Terrain Destroyed 381 | . 70 25 62 112 25 19 3 43 . 2 20 . Melee 1 | . . . 1 . . . . . . . . . Projectile 43 | . . 1 . 15 4 2 3 11 . 2 5 . AOE 337 | . 70 24 61 97 21 17 . 32 . . 15 . Terrain Rammed . | . . . . . . . . . . . . . Walls Destroyed . | . . . . . . . . . . . . . Machines Disabled . | . . . . . . . . . . . . . Actions | -11 -10 -10 -9 -9 -8 -7 -7 -7 -7 -6 -6 -6 --------- Run | Yrd Mat Min Mat Min Mat Fac Low Low Dat Pro Fac Ext Total 10283 | 74 846 681 612 651 1531 900 1201 1181 101 624 758 1123 Wait 999 | . 32 10 111 27 118 169 31 55 . 158 141 147 Move 8517 | 54 735 626 428 549 1211 677 1158 1067 98 437 557 920 Hop . | . . . . . . . . . . . . . Pick Up 89 | 6 17 5 11 5 26 5 2 3 . 2 5 2 Fast Attach 29 | 7 2 . 1 . 11 . . 1 . . 4 3 Attach 59 | . . 3 3 7 16 3 1 9 . 5 9 3 Detach 12 | . . . 1 . 4 . . . 3 . 3 1 Swap 89 | . 10 7 15 15 16 11 2 6 . 4 3 . Drop 62 | . 10 . 10 1 22 4 2 3 . . 2 8 Fire 351 | 7 40 30 31 47 105 17 5 37 . 8 24 . Melee 31 | . . . 1 . 2 6 . . . 10 10 2 Ram 5 | . . . . . . . . . . . . 5 Kick . | . . . . . . . . . . . . . Crush . | . . . . . . . . . . . . . Escape Stasis 23 | . . . . . . 8 . . . . . 15 Rewire 17 | . . . . . . . . . . . . 17 Trap . | . . . . . . . . . . . . . Miscellaneous . | . . . . . . . . . . . . . Route ------- -11/Scrapyard -10/Materials (discovered 4 exits: *Mat x3 / *Min) -10/Mines (discovered 2 exits: *Mat x2) -9/Materials (discovered 4 exits: *Mat x2 / *Min x2) -9/Mines (discovered 2 exits: *Mat x2) -8/Materials (discovered 2 exits: *Fac x2) -7/Factory (discovered 2 exits: Sto / *Low) -7/Lower Caves -7/Lower Caves (discovered 2 exits: *Fac / *Dat) -7/Data Miner -6/Proximity Caves -6/Factory (discovered 2 exits: Fac / *Ext) -6/Extension History --------- Turn | Location | Event 20 | -11/Scrapyard | Discovered new exit (range 16) 86 | -11/Scrapyard | Entered Materials 194 | -10/Materials | Discovered new exit (range 15) 265 | -10/Materials | Discovered new exit (range 13) 302 | -10/Materials | Build established: Mutant 302 | -10/Materials | Identified exit to Mines 371 | -10/Materials | Discovered new exit (range 4) 829 | -10/Materials | Discovered new exit (range 16) 973 | -10/Materials | Entered Mines 985 | -10/Mines | Learned 8 Materials zone layouts 996 | -10/Mines | Discovered new exit (range 12) 1044 | -10/Mines | Met a Derelict who couldn't figure out how to use a Trap Extractor 1128 | -10/Mines | Discovered new exit (range 12) 1449 | -10/Mines | Found a damaged Exp. Sensor Array with a note attached 1451 | -10/Mines | Found Prototype Device 1495 | -10/Mines | Received a Rocket Launcher from a helpful Derelict 1793 | -10/Mines | Entered Materials 1793 | -9/Materials | Evolved 2 slots: Utility x2 1794 | -9/Materials | Identified exit to Mines 1794 | -9/Materials | Identified exit to Materials 2464 | -9/Materials | Discovered exit to Materials (range 10) 2532 | -9/Materials | Entered Mines 2533 | -9/Mines | Assembled infested the area 2538 | -9/Mines | Assisted by a Guerilla fighting off Assembled 2660 | -9/Mines | A weapon hastily lodged in a ceiling crevice suddenly fell to the ground 2739 | -9/Mines | Found the Drone Emporium 2743 | -9/Mines | Found Prototype Device 3189 | -9/Mines | Joined a pair of Derelicts in attacking an 0b10 outpost 3296 | -9/Mines | Discovered exit to Materials (range 13) 3306 | -9/Mines | Found a hidden stash of uninstalled traps 3323 | -9/Mines | Build established: Scavenger-Mutant 3353 | -9/Mines | Core integrity fell below 50% 3380 | -9/Mines | Discovered exit to Materials (range 6) 3387 | -9/Mines | Entered Materials 3387 | -8/Materials | Evolved 2 slots: Utility x1, Weapon x1 3394 | -8/Materials | Identified Sensor Drone Bay 3606 | -8/Materials | Lost 4 parts (3u1w) 3677 | -8/Materials | Build established: Tank 3782 | -8/Materials | Lost 5 parts (1p2u2w) 3788 | -8/Materials | Destroyed 7 combat bots 3990 | -8/Materials | Discovered new exit (range 16) 4326 | -8/Materials | Build established: Scavenger-Tank 4754 | -8/Materials | Discovered new exit (range 5) 4762 | -8/Materials | Identified exit to Factory 5069 | -8/Materials | Build established: Skirmisher 5499 | -8/Materials | Entered Factory 5499 | -7/Factory | Evolved 2 slots: Utility x1, Weapon x1 5500 | -7/Factory | Identified exit to Storage 5984 | -7/Factory | Discovered new exit (range 13) 6181 | -7/Factory | Identified exit to Lower Caves 6646 | -7/Factory | Entered Lower Caves 6950 | -7/Lower Caves | Attracted the attention of an 0b10 checkpoint 7026 | -7/Lower Caves | Discovered new exit (range 15) 7028 | -7/Lower Caves | Learned 4 Factory zone layouts 7043 | -7/Lower Caves | Identified exit to Lower Caves 7147 | -7/Lower Caves | Learned Factory emergency access door positions 8205 | -7/Lower Caves | Entered another Lower Caves area 8378 | -7/Lower Caves | Discovered new exit (range 7) 8384 | -7/Lower Caves | Identified exit to Factory 8937 | -7/Lower Caves | Attracted the attention of an 0b10 checkpoint 8999 | -7/Lower Caves | Learned location of Extension (-6) 9302 | -7/Lower Caves | Discovered new exit (range 9) 9311 | -7/Lower Caves | Identified exit to Data Miner 9536 | -7/Lower Caves | Attracted the attention of an 0b10 outpost 9597 | -7/Lower Caves | Destroyed 7 combat bots 9606 | -7/Lower Caves | Lost 7 parts (1n5u1w) 9784 | -7/Lower Caves | Entered Data Miner 9786 | -7/Data Miner | Discovered new exit (range 7) 9795 | -7/Data Miner | Identified exit to Proximity Caves 9815 | -7/Data Miner | Met Data Miner 9859 | -7/Data Miner | Learned location of Section 7 (-2) 9859 | -7/Data Miner | Acquired the access code to Warlord's prototype stash 9880 | -7/Data Miner | Received God Mode back door access code from Data Miner 9913 | -7/Data Miner | Entered Proximity Caves 10364 | -6/Proximity Caves | Attracted the attention of an 0b10 checkpoint 10372 | -6/Proximity Caves | Core integrity fell below 50% 10405 | -6/Proximity Caves | Lost 3 parts (2u1w) 10421 | -6/Proximity Caves | Discovered exit to Factory (range 7) 10675 | -6/Proximity Caves | Build established: Mutant 10680 | -6/Proximity Caves | Entered Factory 10680 | -6/Factory | Evolved 2 slots: Propulsion x2 10681 | -6/Factory | Identified exit to Factory 10728 | -6/Factory | Incoming investigation squad redirected 10889 | -6/Factory | Incoming investigation squad redirected 10984 | -6/Factory | Fabricated H-55 Commando (x2) 11148 | -6/Factory | Build established: Skirmisher 11210 | -6/Factory | Lost 8 parts (1p1n1u5w) 11397 | -6/Factory | Discovered new exit (range 6) 11403 | -6/Factory | Identified exit to Extension 11412 | -6/Factory | Identified Exp. Sensor Array 11567 | -6/Factory | Build established: Assassin 11650 | -6/Factory | Entered Extension 11667 | -6/Extension | Disrupted transfer network 11764 | -6/Extension | Rescued a captive Derelict 11765 | -6/Extension | Rescued a captive Derelict 11802 | -6/Extension | Incoming investigation squad redirected 11977 | -6/Extension | Rescued a captive Derelict 11978 | -6/Extension | Rescued a captive Derelict 12044 | -6/Extension | Rescued a captive Derelict 12083 | -6/Extension | Rescued a captive Derelict 12094 | -6/Extension | Incoming investigation squad redirected 12096 | -6/Extension | Incoming investigation squad redirected 12104 | -6/Extension | Spotted B-75 Beast 12175 | -6/Extension | Build established: Scout 12214 | -6/Extension | Spotted B-75 Beast 12410 | -6/Extension | Core integrity fell below 50% 12416 | -6/Extension | Core integrity fell below 20% 12420 | -6/Extension | Destroyed by B-75 Beast with Heavy Plasma Cannon Last Messages --------------- 12383_ Dirty Datajack destroyed. 12386_ Critical hit (Burn: +37). 12398_ Slammed into U-05 Engineer. 12399_ Slammed into G-50 Soldier. 12399_ Destabilizing: Core damaged (-42). 12400_ System Guard destroyed. 12400_ Slammed into G-50 Soldier. 12402_ Imp. Sensor Array destroyed. 12402_ Critical hit (Burn: +37). 12404_ Acquired 10 matter. 12407_ Slammed into U-05 Engineer. 12407_ Imp. Reaction Control System destroyed. 12408_ Machine disabled. 12409_ Seismic Detector destroyed. 12409_ U-05 Engineer destroyed. 12415_ Knocked back. 12415_ Connecting with Door Terminal... 12415_ ALERT: Suspicious activity at Terminal E001. Dispatching Investigation squad. 12420_ Hacking Suite destroyed. Map ----- +----------------------------------------------------+ | ??#"^ T"#??#%#???????????????????????????????????? | | ??# ^ ""#??# #???????????????????????????????????? | | ??#!^ ""#??#%#???????????????????????????????????? | | ??#^] ######%#???????????????????????????????????? | | ??#^! + #???????????????????????????????????? | | ??#] ###### #???????????????????????????????????? | | ??#####????#%#????????? ?????????????????????????? | | ???????????# #????????? ?????????????????????????? | | ???????????# #????????# ?????????????????????????? | | ???????????#%#????????# ?????????????????????????? | | ???????????# #????????# ?????????????????????????? | | ???????????#%#????????# #????????????????????????? | | ???????????# #????????# #????????????????????????? | | ???????????#%########?# #????????????????????????? | | ?????????### ##; ## ### ###??????????????????????? | | ????????##"" ! !! Y "" ""#??????????????????????? | | ????????#; % !%=Y " " #??????????????????????? | | ?????????# | #??????????????????????? | | #????????# #??????????????????????? | | ########## ############???????????? | | ??????????? | | ??????????? | | ??????????? | | ??????????? | | BB ??????????? | | ########## BB BB @###########????????????? | | ?????????# BB #??????????????????????? | | ?????????# #??????????????????????? | | ?????????# % #??????????????????????? | | ?????????# % #??????????????????????? | | ?????????####;#T#"""#;#####??????????????????????? | | ????????????#####???###??????????????????????????? | | ?????????????????????????????????????????????????? | | | | | | | | | | | | | | | | | | | | | | | | | | | | | | | | | | | +----------------------------------------------------+ Best States ------------- Heat Dissipation 56 Coolant Potential 50 Energy Generation 14 Energy Capacity 280 Matter Stores 300 Matter Capacity 500 Sight Range 22 Robot Scan Range 20 Terrain Scan Range 16 Terrain Scan Density 10 Corruption Containment 8 Armor Coverage 375 Evasion (%) 50 Targeting Accuracy 6 Melee Accuracy 6 Target Analysis 6 Recoil Reduction 4 Matter Filtering 30 Offensive Hacking 10 Item Schematics ----------------- Combat Drone Bay | -7/Data Miner | Free Lgt. Regenerative Plating | -7/Data Miner | Free Cld. Cesium-ion Thruster | -7/Data Miner | Free Exp. Targeting Computer | -7/Data Miner | Free Gui. EMP Blaster | -7/Data Miner | Free Gyrokinetic Inverter | -7/Data Miner | Free Lrn. Tractor Beam | -7/Data Miner | Free Mass Driver | -7/Data Miner | Free Flexi-carbon Leg | -7/Data Miner | Free Lyr. Heavy Armor Plating | -7/Data Miner | Free Imp. Plasma Cutter | -7/Data Miner | Free Force Lance | -7/Data Miner | Free Imp. Force Booster | -7/Data Miner | Free Robot Schematics ------------------ H-55 Commando | -7/Data Miner | Free B-48 Gladiator | -7/Data Miner | Free A-15 Conveyor | -7/Data Miner | Free B-60 Warrior | -7/Data Miner | Free Fabricated ------------ H-55 Commando | x2 | -6/Factory Repaired ---------- Nothing Alien Tech Used ----------------- None Achievements -------------- Dramatic Entrance Watch This! Challenges ------------ None Game ------ Seed DroneHelicalHarness Manual? 0 Play Time 01:41:28 Cumulative 78.9 hours Start 2025.07.31 @ 12:56:40 End 2025.07.31 @ 14:39:29 Sessions 1 Manual Loads 0 Difficulty Rogue Special Mode None Game No. 102 Rogue 102 Adventurer 0 Explorer 0 Win Type - Total 0 Types 0/0/0/0/0/0/0/0/0/0 Lore% 57 Gallery% 39 Achievement% 39 Wizard Run 0 Options --------- Layout 1 ASCII 0 Keyboard 0 Movement Arrows Keybinds 0 Fullscreen 1 Font 24/Smallcaps Map View 50x35 Zoom Use 0% Tactical HUD 1 Map Filters NONE Filters NONE Steam 1 RUN: ec9d7047-7747-4e79-b821-d0e1739a5459